[Event "Late-Titled-Tuesday-Blitz-May-28-2024"]
[Site "Chess.com"]
[Date "2024.05.28"]
[Round "7"]
[White "nitpicker"]
[Black "djjohnnywoo"]
[Result "1-0"]
[WhiteElo "2309"]
[BlackElo "2127"]
[TimeControl "180+1"]
[EndTime "15:17:32 PDT"]
[Termination "nitpicker won on time"]

1. d4 {[%clk 0:03:00.9]} 1... g6 {[%clk 0:03:00]} 2. e4 {[%clk 0:02:59.8]} 2...
Bg7 {[%clk 0:03:00.5]} 3. Nc3 {[%clk 0:03:00.3]} 3... d6 {[%clk 0:03:00.8]} 4.
h3 {[%clk 0:02:59.5]} 4... c6 {[%clk 0:02:58.5]} 5. a4 {[%clk 0:02:58.3]} 5...
Nd7 {[%clk 0:02:51.7]} 6. Nge2 {[%clk 0:02:57.3]} 6... e5 {[%clk 0:02:51]} 7.
Be3 {[%clk 0:02:56.6]} 7... Ngf6 {[%clk 0:02:48.9]} 8. g4 {[%clk 0:02:46]} 8...
Qa5 {[%clk 0:02:42]} 9. Bg2 {[%clk 0:02:44.8]} 9... O-O {[%clk 0:02:25.1]} 10.
O-O {[%clk 0:02:43.4]} 10... Qb4 {[%clk 0:02:17.2]} 11. Ra3 {[%clk 0:02:33.7]}
11... exd4 {[%clk 0:02:11.8]} 12. Bxd4 {[%clk 0:02:19.7]} 12... Nc5 {[%clk
0:02:04.5]} 13. Na2 {[%clk 0:01:50.5]} 13... Qc4 {[%clk 0:01:51.7]} 14. f3
{[%clk 0:01:38.2]} 14... a5 {[%clk 0:01:37.7]} 15. Re1 {[%clk 0:01:35.1]} 15...
h5 {[%clk 0:01:33.9]} 16. Bf1 {[%clk 0:01:34.6]} 16... Qe6 {[%clk 0:01:31.3]}
17. Nf4 {[%clk 0:01:30.3]} 17... Qe7 {[%clk 0:01:29.6]} 18. e5 {[%clk
0:01:17.1]} 18... dxe5 {[%clk 0:01:29.8]} 19. Rxe5 {[%clk 0:01:10.8]} 19... Ne6
{[%clk 0:01:29.9]} 20. Bc5 {[%clk 0:00:58.2]} 20... Qxc5+ {[%clk 0:01:21.8]} 21.
Rxc5 {[%clk 0:00:56.7]} 21... Nxc5 {[%clk 0:01:22.4]} 22. gxh5 {[%clk
0:00:53.1]} 22... gxh5 {[%clk 0:01:12.5]} 23. Nc3 {[%clk 0:00:32.6]} 23... Bf5
{[%clk 0:01:06.5]} 24. Qe1 {[%clk 0:00:30.5]} 24... Kh7 {[%clk 0:00:48.4]} 25.
Qf2 {[%clk 0:00:28.9]} 25... Ne6 {[%clk 0:00:44.9]} 26. Bd3 {[%clk 0:00:26]}
26... Bxd3 {[%clk 0:00:43.7]} 27. Nxd3 {[%clk 0:00:25.9]} 27... Bh6 {[%clk
0:00:40.9]} 28. Ne4 {[%clk 0:00:23]} 28... Rg8+ {[%clk 0:00:40.7]} 29. Kh1
{[%clk 0:00:22.3]} 29... Nd5 {[%clk 0:00:34.8]} 30. c4 {[%clk 0:00:21.5]} 30...
Ne3 {[%clk 0:00:24.6]} 31. Nf6+ {[%clk 0:00:20.9]} 31... Kh8 {[%clk 0:00:23.1]}
32. Nxg8 {[%clk 0:00:20.6]} 32... Rxg8 {[%clk 0:00:23.7]} 33. Ne5 {[%clk
0:00:19.4]} 33... Nf5 {[%clk 0:00:03.3]} 34. Nxf7+ {[%clk 0:00:17.9]} 34... Kh7
{[%clk 0:00:04]} 35. Nxh6 {[%clk 0:00:17.9]} 35... Kxh6 {[%clk 0:00:04.5]} 36.
Qc2 {[%clk 0:00:17]} 36... Kh7 {[%clk 0:00:04.3]} 37. Qxf5+ {[%clk 0:00:16.4]}
1-0

[Event "Late-Titled-Tuesday-Blitz-May-28-2024"]
[Site "Chess.com"]
[Date "2024.05.28"]
[Round "7"]
[White "Qvalda"]
[Black "olawsson"]
[Result "1-0"]
[WhiteElo "2404"]
[BlackElo "2158"]
[TimeControl "180+1"]
[EndTime "15:17:33 PDT"]
[Termination "Qvalda won by checkmate"]

1. d4 {[%clk 0:03:00.9]} 1... d6 {[%clk 0:02:59.8]} 2. e4 {[%clk 0:02:59.6]}
2... Nc6 {[%clk 0:02:59.5]} 3. d5 {[%clk 0:02:55.4]} 3... Nb8 {[%clk 0:02:57.8]}
4. Nf3 {[%clk 0:02:53.6]} 4... c6 {[%clk 0:02:58]} 5. c4 {[%clk 0:02:52.5]} 5...
Nf6 {[%clk 0:02:57.5]} 6. Nc3 {[%clk 0:02:52.1]} 6... g6 {[%clk 0:02:56.9]} 7.
Bd3 {[%clk 0:02:51.3]} 7... Bg7 {[%clk 0:02:57.1]} 8. O-O {[%clk 0:02:51.8]}
8... Nbd7 {[%clk 0:02:57.3]} 9. Re1 {[%clk 0:02:39.3]} 9... Nc5 {[%clk
0:02:52.9]} 10. Bc2 {[%clk 0:02:38.3]} 10... a5 {[%clk 0:02:53.2]} 11. dxc6
{[%clk 0:02:34.7]} 11... bxc6 {[%clk 0:02:51.7]} 12. e5 {[%clk 0:02:35.3]} 12...
dxe5 {[%clk 0:02:34]} 13. Qxd8+ {[%clk 0:02:36.2]} 13... Kxd8 {[%clk 0:02:33.5]}
14. Nxe5 {[%clk 0:02:36]} 14... Be6 {[%clk 0:02:11.6]} 15. Nxc6+ {[%clk
0:02:32.9]} 15... Kc7 {[%clk 0:02:12]} 16. Nxe7 {[%clk 0:02:29]} 16... Bxc4
{[%clk 0:02:09.6]} 17. Bf4+ {[%clk 0:02:21.1]} 17... Kb7 {[%clk 0:02:02.5]} 18.
Na4 {[%clk 0:02:10.8]} 18... Ne6 {[%clk 0:01:47.2]} 19. Be5 {[%clk 0:01:54.4]}
19... Rhe8 {[%clk 0:01:44.3]} 20. Bxf6 {[%clk 0:01:46]} 20... Bxf6 {[%clk
0:01:43]} 21. Be4+ {[%clk 0:01:46.5]} 21... Kc7 {[%clk 0:01:31.3]} 22. Nd5+
{[%clk 0:01:32.5]} 22... Bxd5 {[%clk 0:01:26]} 23. Bxd5 {[%clk 0:01:33.4]} 23...
Rad8 {[%clk 0:01:19.4]} 24. Rac1+ {[%clk 0:01:31.8]} 24... Kb8 {[%clk
0:01:19.3]} 25. Bxe6 {[%clk 0:01:22.6]} 25... Rxe6 {[%clk 0:01:16.8]} 26. Rxe6
{[%clk 0:01:20.2]} 26... fxe6 {[%clk 0:01:17.7]} 27. Kf1 {[%clk 0:01:18]} 27...
Rd2 {[%clk 0:01:14]} 28. Ke1 {[%clk 0:01:17]} 28... Rd4 {[%clk 0:01:07.4]} 29.
b3 {[%clk 0:01:10.8]} 29... Kb7 {[%clk 0:00:51.3]} 30. Rc4 {[%clk 0:01:03.9]}
30... Rd6 {[%clk 0:00:42.7]} 31. Rc5 {[%clk 0:01:03.7]} 31... Bd8 {[%clk
0:00:38.7]} 32. Ke2 {[%clk 0:01:02.9]} 32... Ka6 {[%clk 0:00:29.4]} 33. f3
{[%clk 0:01:02.7]} 33... h5 {[%clk 0:00:28.3]} 34. Rc8 {[%clk 0:00:59.8]} 34...
Bg5 {[%clk 0:00:25.8]} 35. Nc5+ {[%clk 0:00:58.4]} 35... Kb5 {[%clk 0:00:23.7]}
36. Nd3 {[%clk 0:00:58.2]} 36... Bf6 {[%clk 0:00:16.8]} 37. Rc5+ {[%clk
0:00:57.3]} 37... Kb6 {[%clk 0:00:15.6]} 38. Rc4 {[%clk 0:00:57.8]} 38... h4
{[%clk 0:00:15.1]} 39. Rg4 {[%clk 0:00:56.1]} 39... g5 {[%clk 0:00:14.8]} 40.
Re4 {[%clk 0:00:56.1]} 40... Kb5 {[%clk 0:00:12.5]} 41. Rc4 {[%clk 0:00:55.7]}
41... Kb6 {[%clk 0:00:12.6]} 42. Nf2 {[%clk 0:00:55.6]} 42... Rd5 {[%clk
0:00:09.6]} 43. h3 {[%clk 0:00:52.4]} 43... Be5 {[%clk 0:00:09.4]} 44. Nd3
{[%clk 0:00:49.8]} 44... Bg3 {[%clk 0:00:08.9]} 45. Re4 {[%clk 0:00:48.6]} 45...
e5 {[%clk 0:00:08.5]} 46. Rc4 {[%clk 0:00:46.6]} 46... Kb5 {[%clk 0:00:08.1]}
47. Rc8 {[%clk 0:00:42.8]} 47... Kb6 {[%clk 0:00:07.7]} 48. Re8 {[%clk
0:00:41.4]} 48... Bh2 {[%clk 0:00:07]} 49. Rg8 {[%clk 0:00:40.4]} 49... Bf4
{[%clk 0:00:06.9]} 50. Rg6+ {[%clk 0:00:37.8]} 50... Kb5 {[%clk 0:00:06.7]} 51.
a4# {[%clk 0:00:37]} 1-0

[Event "Late-Titled-Tuesday-Blitz-May-28-2024"]
[Site "Chess.com"]
[Date "2024.05.28"]
[Round "7"]
[White "Magicmaster17"]
[Black "hansen"]
[Result "0-1"]
[WhiteElo "2881"]
[BlackElo "3059"]
[TimeControl "180+1"]
[EndTime "15:17:37 PDT"]
[Termination "hansen won on time"]

1. d4 {[%clk 0:03:00.9]} 1... Nf6 {[%clk 0:02:56]} 2. Nf3 {[%clk 0:03:01.8]}
2... e6 {[%clk 0:02:51.6]} 3. c4 {[%clk 0:03:01.9]} 3... Bb4+ {[%clk 0:02:50.2]}
4. Nbd2 {[%clk 0:03:01]} 4... O-O {[%clk 0:02:49.7]} 5. a3 {[%clk 0:03:00.9]}
5... Be7 {[%clk 0:02:37.5]} 6. e4 {[%clk 0:03:00.3]} 6... d6 {[%clk 0:02:38.2]}
7. Qc2 {[%clk 0:02:58.7]} 7... Nc6 {[%clk 0:02:35.9]} 8. Be2 {[%clk 0:02:56.8]}
8... Nd7 {[%clk 0:02:29.7]} 9. b4 {[%clk 0:02:51.9]} 9... Bf6 {[%clk 0:02:29.9]}
10. Bb2 {[%clk 0:02:51.8]} 10... e5 {[%clk 0:02:30.4]} 11. d5 {[%clk 0:02:52.2]}
11... Ne7 {[%clk 0:02:28.2]} 12. h4 {[%clk 0:02:50.5]} 12... b6 {[%clk
0:02:11.6]} 13. g4 {[%clk 0:02:16.9]} 13... Ng6 {[%clk 0:02:10.3]} 14. g5 {[%clk
0:02:13.3]} 14... Be7 {[%clk 0:02:09.8]} 15. Nf1 {[%clk 0:02:11.7]} 15... Nf4
{[%clk 0:02:00.7]} 16. Ng3 {[%clk 0:02:08.7]} 16... f6 {[%clk 0:01:54.5]} 17.
Nf5 {[%clk 0:01:56.1]} 17... fxg5 {[%clk 0:01:50.3]} 18. Nxe7+ {[%clk
0:01:54.3]} 18... Qxe7 {[%clk 0:01:50.5]} 19. hxg5 {[%clk 0:01:55]} 19... Rf7
{[%clk 0:01:35]} 20. O-O-O {[%clk 0:01:52.3]} 20... Nxe2+ {[%clk 0:01:32.5]} 21.
Qxe2 {[%clk 0:01:52.1]} 21... Nf8 {[%clk 0:01:33.2]} 22. Rdg1 {[%clk 0:01:48.7]}
22... Rf4 {[%clk 0:01:30.4]} 23. Nh4 {[%clk 0:01:42.2]} 23... a5 {[%clk
0:01:15.1]} 24. f3 {[%clk 0:01:41.4]} 24... axb4 {[%clk 0:01:14.7]} 25. axb4
{[%clk 0:01:42.3]} 25... b5 {[%clk 0:01:10]} 26. cxb5 {[%clk 0:01:33.1]} 26...
Bd7 {[%clk 0:01:06.4]} 27. Qc4 {[%clk 0:01:31.3]} 27... Qe8 {[%clk 0:01:01.5]}
28. Kd2 {[%clk 0:01:02.4]} 28... Qb8 {[%clk 0:00:52.1]} 29. Rc1 {[%clk
0:00:51.3]} 29... Qb6 {[%clk 0:00:43]} 30. Kd1 {[%clk 0:00:09.2]} 30... Rxh4
{[%clk 0:00:19.3]} 31. Rxh4 {[%clk 0:00:10.1]} 31... Qg1+ {[%clk 0:00:19.2]} 32.
Ke2 {[%clk 0:00:10.3]} 32... Qg2+ {[%clk 0:00:16.9]} 33. Ke1 {[%clk 0:00:08.6]}
33... Qxb2 {[%clk 0:00:15.4]} 34. Qc3 {[%clk 0:00:08.1]} 34... Qg2 {[%clk
0:00:13.7]} 35. Qd2 {[%clk 0:00:04.4]} 35... Qg1+ {[%clk 0:00:07.3]} 36. Ke2
{[%clk 0:00:04.8]} 36... Bxb5+ {[%clk 0:00:07.9]} 0-1

[Event "Late-Titled-Tuesday-Blitz-May-28-2024"]
[Site "Chess.com"]
[Date "2024.05.28"]
[Round "7"]
[White "AradNazari"]
[Black "brunoo2003"]
[Result "0-1"]
[WhiteElo "2779"]
[BlackElo "2596"]
[TimeControl "180+1"]
[EndTime "15:17:37 PDT"]
[Termination "brunoo2003 won by resignation"]

1. e4 {[%clk 0:03:00.9]} 1... e5 {[%clk 0:02:51.1]} 2. f4 {[%clk 0:03:00.7]}
2... Nc6 {[%clk 0:02:45.8]} 3. Nf3 {[%clk 0:03:00.7]} 3... Bc5 {[%clk
0:02:21.9]} 4. c3 {[%clk 0:02:57.4]} 4... d6 {[%clk 0:02:20.5]} 5. d4 {[%clk
0:02:45.4]} 5... Bb6 {[%clk 0:02:15.1]} 6. Bb5 {[%clk 0:02:37.4]} 6... exd4
{[%clk 0:02:12]} 7. cxd4 {[%clk 0:02:37.1]} 7... Bd7 {[%clk 0:02:11.2]} 8. O-O
{[%clk 0:02:35.3]} 8... a6 {[%clk 0:02:06.5]} 9. Ba4 {[%clk 0:02:32.4]} 9...
Nge7 {[%clk 0:01:57.4]} 10. Nc3 {[%clk 0:02:29.9]} 10... O-O {[%clk 0:01:55.5]}
11. Kh1 {[%clk 0:02:25.6]} 11... d5 {[%clk 0:01:54.7]} 12. e5 {[%clk 0:02:02.7]}
12... Bg4 {[%clk 0:01:35.8]} 13. Be3 {[%clk 0:02:00.9]} 13... Nf5 {[%clk
0:01:33.4]} 14. Bxc6 {[%clk 0:01:48.8]} 14... Nxe3 {[%clk 0:01:30.5]} 15. Qd3
{[%clk 0:01:49.4]} 15... Nxf1 {[%clk 0:01:21.7]} 16. Bxb7 {[%clk 0:01:47.6]}
16... Rb8 {[%clk 0:01:21.9]} 17. Bxd5 {[%clk 0:01:45.5]} 17... Bxf3 {[%clk
0:01:14.5]} 18. gxf3 {[%clk 0:01:32.9]} 18... Nxh2 {[%clk 0:00:39.2]} 19. Kxh2
{[%clk 0:01:23.1]} 19... Qh4+ {[%clk 0:00:39.6]} 20. Kg2 {[%clk 0:01:23.6]}
20... Qxf4 {[%clk 0:00:40.3]} 21. Rh1 {[%clk 0:01:13.8]} 21... g6 {[%clk
0:00:40.2]} 22. Ne2 {[%clk 0:01:09.7]} 22... Qg5+ {[%clk 0:00:39.9]} 23. Kf2
{[%clk 0:01:08.4]} 23... Qxe5 {[%clk 0:00:36.6]} 24. Bb3 {[%clk 0:00:51.2]}
24... Qf6 {[%clk 0:00:35.5]} 25. Rg1 {[%clk 0:00:35.3]} 25... Rfd8 {[%clk
0:00:34]} 26. Rg4 {[%clk 0:00:34.8]} 26... Rd6 {[%clk 0:00:27.9]} 27. Kg2 {[%clk
0:00:32.1]} 27... Rbd8 {[%clk 0:00:23.6]} 28. d5 {[%clk 0:00:29.1]} 28... Qxb2
{[%clk 0:00:18.7]} 29. Kh3 {[%clk 0:00:22.2]} 29... Re8 {[%clk 0:00:18.9]} 30.
Rg2 {[%clk 0:00:21.3]} 30... Qf6 {[%clk 0:00:18.4]} 31. Ng3 {[%clk 0:00:16.9]}
31... Re3 {[%clk 0:00:18.8]} 32. Qxa6 {[%clk 0:00:17]} 32... Rxf3 {[%clk
0:00:17.3]} 33. Qc8+ {[%clk 0:00:16.7]} 33... Kg7 {[%clk 0:00:17.6]} 34. Qg4
{[%clk 0:00:17.4]} 34... Kf8 {[%clk 0:00:16]} 35. Kh2 {[%clk 0:00:16.1]} 35...
Qf4 {[%clk 0:00:15.3]} 36. Qc8+ {[%clk 0:00:16.2]} 36... Kg7 {[%clk 0:00:14.6]}
37. Qh3 {[%clk 0:00:08.3]} 37... Bf2 {[%clk 0:00:14.9]} 38. Kh1 {[%clk
0:00:04.9]} 38... Rxg3 {[%clk 0:00:13.5]} 0-1

[Event "Late-Titled-Tuesday-Blitz-May-28-2024"]
[Site "Chess.com"]
[Date "2024.05.28"]
[Round "7"]
[White "ChadBiryani"]
[Black "Pig-filth"]
[Result "1-0"]
[WhiteElo "2546"]
[BlackElo "2371"]
[TimeControl "180+1"]
[EndTime "15:17:38 PDT"]
[Termination "ChadBiryani won on time"]

1. c4 {[%clk 0:03:00.9]} 1... Nf6 {[%clk 0:03:00.9]} 2. g3 {[%clk 0:02:59.6]}
2... e5 {[%clk 0:03:01.1]} 3. Bg2 {[%clk 0:02:59.6]} 3... Nc6 {[%clk 0:03:01]}
4. a3 {[%clk 0:02:58.1]} 4... a5 {[%clk 0:02:59]} 5. Nc3 {[%clk 0:02:56.8]} 5...
Bc5 {[%clk 0:02:59.3]} 6. Nf3 {[%clk 0:02:55.4]} 6... O-O {[%clk 0:02:57.7]} 7.
O-O {[%clk 0:02:55.3]} 7... d6 {[%clk 0:02:58.1]} 8. e3 {[%clk 0:02:55.5]} 8...
Bg4 {[%clk 0:02:55.1]} 9. h3 {[%clk 0:02:55.6]} 9... Bd7 {[%clk 0:02:44.3]} 10.
d4 {[%clk 0:02:55.1]} 10... Ba7 {[%clk 0:02:41.1]} 11. b3 {[%clk 0:02:49.3]}
11... Re8 {[%clk 0:02:35.1]} 12. Bb2 {[%clk 0:02:49.1]} 12... Bf5 {[%clk
0:02:23.9]} 13. dxe5 {[%clk 0:02:39.6]} 13... dxe5 {[%clk 0:02:23.6]} 14. Nb5
{[%clk 0:02:38.9]} 14... Bb6 {[%clk 0:02:22.7]} 15. Qc1 {[%clk 0:02:12.9]} 15...
Qc8 {[%clk 0:02:15.4]} 16. Kh2 {[%clk 0:02:11]} 16... h6 {[%clk 0:02:07.3]} 17.
Rd1 {[%clk 0:01:59.9]} 17... Be4 {[%clk 0:02:03.2]} 18. c5 {[%clk 0:01:56.5]}
18... Ba7 {[%clk 0:01:54.9]} 19. Qc4 {[%clk 0:01:56]} 19... Bb8 {[%clk
0:01:38.8]} 20. Rd2 {[%clk 0:01:47.6]} 20... Qf5 {[%clk 0:01:36.2]} 21. Nh4
{[%clk 0:01:44.9]} 21... Qh7 {[%clk 0:01:36.8]} 22. Bxe4 {[%clk 0:01:36.2]}
22... Qxe4 {[%clk 0:01:37.7]} 23. Qxe4 {[%clk 0:01:33.5]} 23... Nxe4 {[%clk
0:01:38.6]} 24. Rd7 {[%clk 0:01:33.3]} 24... Nxc5 {[%clk 0:01:38.1]} 25. Rd5
{[%clk 0:01:29.7]} 25... Nxb3 {[%clk 0:01:37]} 26. Rad1 {[%clk 0:01:27.1]} 26...
b6 {[%clk 0:01:07.5]} 27. Nf5 {[%clk 0:01:17.3]} 27... Nc5 {[%clk 0:01:07.5]}
28. f3 {[%clk 0:01:14.5]} 28... Ne6 {[%clk 0:00:47.4]} 29. Kg2 {[%clk
0:01:07.5]} 29... Ne7 {[%clk 0:00:46]} 30. Nxe7+ {[%clk 0:01:04.1]} 30... Rxe7
{[%clk 0:00:46.9]} 31. e4 {[%clk 0:01:00.7]} 31... c6 {[%clk 0:00:46.3]} 32.
Rd8+ {[%clk 0:01:00.4]} 32... Nxd8 {[%clk 0:00:45.9]} 33. Rxd8+ {[%clk
0:01:01.3]} 33... Kh7 {[%clk 0:00:46.7]} 34. Nd6 {[%clk 0:00:54.1]} 34... Bxd6
{[%clk 0:00:46.6]} 35. Rxa8 {[%clk 0:00:54]} 35... Bc5 {[%clk 0:00:44.6]} 36.
Rc8 {[%clk 0:00:51.3]} 36... f6 {[%clk 0:00:45.1]} 37. Rxc6 {[%clk 0:00:50.5]}
37... Rd7 {[%clk 0:00:45.9]} 38. Bc3 {[%clk 0:00:46.7]} 38... Rd3 {[%clk
0:00:44.5]} 39. Bxa5 {[%clk 0:00:45.1]} 39... Rxa3 {[%clk 0:00:35.7]} 40. Bxb6
{[%clk 0:00:44.1]} 40... Bxb6 {[%clk 0:00:33.9]} 41. Rxb6 {[%clk 0:00:44.3]}
41... Ra2+ {[%clk 0:00:34.8]} 42. Kg1 {[%clk 0:00:44.2]} 42... Kg6 {[%clk
0:00:35.7]} 43. Rb7 {[%clk 0:00:43.6]} 43... Rc2 {[%clk 0:00:34.9]} 44. h4
{[%clk 0:00:41.9]} 44... h5 {[%clk 0:00:32.6]} 45. Kf1 {[%clk 0:00:40.5]} 45...
Ra2 {[%clk 0:00:32.8]} 46. Rc7 {[%clk 0:00:40.3]} 46... Rc2 {[%clk 0:00:32.1]}
47. Rxc2 {[%clk 0:00:40.2]} 1-0

[Event "Late-Titled-Tuesday-Blitz-May-28-2024"]
[Site "Chess.com"]
[Date "2024.05.28"]
[Round "7"]
[White "GMBenjaminFinegold"]
[Black "Valiyev_Shahin"]
[Result "0-1"]
[WhiteElo "2738"]
[BlackElo "2562"]
[TimeControl "180+1"]
[EndTime "15:17:40 PDT"]
[Termination "Valiyev_Shahin won on time"]

1. d4 {[%clk 0:03:00.9]} 1... d5 {[%clk 0:02:58.3]} 2. c4 {[%clk 0:03:01]} 2...
e6 {[%clk 0:02:58.1]} 3. Nc3 {[%clk 0:03:00.9]} 3... Be7 {[%clk 0:02:56.5]} 4.
Nf3 {[%clk 0:03:00.6]} 4... Nf6 {[%clk 0:02:56.1]} 5. Bg5 {[%clk 0:03:01.1]}
5... h6 {[%clk 0:02:55.9]} 6. Bxf6 {[%clk 0:03:01.4]} 6... Bxf6 {[%clk
0:02:56.8]} 7. e3 {[%clk 0:03:02.1]} 7... O-O {[%clk 0:02:56.3]} 8. Qd2 {[%clk
0:03:02.3]} 8... b6 {[%clk 0:02:48.8]} 9. O-O-O {[%clk 0:02:58.6]} 9... Ba6
{[%clk 0:02:44.5]} 10. cxd5 {[%clk 0:02:55.3]} 10... exd5 {[%clk 0:02:45.4]} 11.
h4 {[%clk 0:02:52.3]} 11... g6 {[%clk 0:02:42.4]} 12. g4 {[%clk 0:02:49.7]}
12... Bg7 {[%clk 0:02:42.9]} 13. g5 {[%clk 0:02:44.1]} 13... h5 {[%clk
0:02:41.8]} 14. Bg2 {[%clk 0:02:41.9]} 14... Nc6 {[%clk 0:02:37.4]} 15. Kb1
{[%clk 0:02:39.9]} 15... b5 {[%clk 0:02:11.8]} 16. Ne5 {[%clk 0:02:34.9]} 16...
Nxe5 {[%clk 0:02:08.5]} 17. dxe5 {[%clk 0:02:35.6]} 17... c6 {[%clk 0:02:08.9]}
18. f4 {[%clk 0:02:33.2]} 18... b4 {[%clk 0:02:09.1]} 19. Na4 {[%clk 0:02:30.5]}
19... Qa5 {[%clk 0:01:59.5]} 20. b3 {[%clk 0:02:30.2]} 20... Bc8 {[%clk
0:01:57.2]} 21. e4 {[%clk 0:02:16.1]} 21... Be6 {[%clk 0:01:52.3]} 22. Rhf1
{[%clk 0:02:01.9]} 22... Rad8 {[%clk 0:01:48.2]} 23. Qc2 {[%clk 0:01:42.5]}
23... d4 {[%clk 0:01:22.9]} 24. f5 {[%clk 0:01:36.6]} 24... d3 {[%clk
0:01:22.9]} 25. Qc5 {[%clk 0:01:12.2]} 25... Qa6 {[%clk 0:01:19.9]} 26. fxe6
{[%clk 0:00:50]} 26... fxe6 {[%clk 0:01:20.1]} 27. Qe7 {[%clk 0:00:42.1]} 27...
d2 {[%clk 0:01:16.3]} 28. Qxe6+ {[%clk 0:00:41.5]} 28... Kh7 {[%clk 0:01:15.2]}
29. Qc4 {[%clk 0:00:37.9]} 29... Rxf1 {[%clk 0:00:54.8]} 30. Bxf1 {[%clk
0:00:33.9]} 30... Qa5 {[%clk 0:00:55.4]} 31. Qc5 {[%clk 0:00:28.8]} 31... Qc7
{[%clk 0:00:56]} 32. Kc2 {[%clk 0:00:25.2]} 32... Qd7 {[%clk 0:00:45.5]} 33. Qc4
{[%clk 0:00:21.1]} 33... Bxe5 {[%clk 0:00:35.4]} 34. Nc5 {[%clk 0:00:21.2]}
34... Qg4 {[%clk 0:00:27.8]} 35. Bd3 {[%clk 0:00:14.4]} 35... Qxh4 {[%clk
0:00:19.2]} 36. Qf7+ {[%clk 0:00:14.2]} 36... Bg7 {[%clk 0:00:18.8]} 37. Ne6
{[%clk 0:00:14.3]} 37... Rg8 {[%clk 0:00:19]} 38. e5 {[%clk 0:00:13]} 38... Qxg5
{[%clk 0:00:14.6]} 39. Rh1 {[%clk 0:00:04.5]} 39... Kh6 {[%clk 0:00:15.2]} 0-1

[Event "Late-Titled-Tuesday-Blitz-May-28-2024"]
[Site "Chess.com"]
[Date "2024.05.28"]
[Round "7"]
[White "Romkachess"]
[Black "Hirna2005"]
[Result "1-0"]
[WhiteElo "2571"]
[BlackElo "2349"]
[TimeControl "180+1"]
[EndTime "15:17:44 PDT"]
[Termination "Romkachess won by resignation"]

1. e4 {[%clk 0:03:00.9]} 1... g6 {[%clk 0:03:00.6]} 2. d4 {[%clk 0:02:57.2]}
2... Bg7 {[%clk 0:03:01.2]} 3. Nc3 {[%clk 0:02:57.2]} 3... d6 {[%clk 0:03:01.8]}
4. Be3 {[%clk 0:02:57.6]} 4... a6 {[%clk 0:03:01.9]} 5. f3 {[%clk 0:02:58.1]}
5... b5 {[%clk 0:03:01]} 6. Qd2 {[%clk 0:02:57.8]} 6... Bb7 {[%clk 0:03:00.3]}
7. h4 {[%clk 0:02:57.5]} 7... h6 {[%clk 0:02:59.1]} 8. Nh3 {[%clk 0:02:55.1]}
8... Nd7 {[%clk 0:02:58.8]} 9. O-O-O {[%clk 0:02:53.4]} 9... Ngf6 {[%clk
0:02:55.3]} 10. g4 {[%clk 0:02:48.5]} 10... Nb6 {[%clk 0:02:51]} 11. h5 {[%clk
0:02:40.6]} 11... g5 {[%clk 0:02:46.2]} 12. b3 {[%clk 0:02:08.3]} 12... Nfd7
{[%clk 0:02:35.5]} 13. Ne2 {[%clk 0:02:00.4]} 13... Rc8 {[%clk 0:02:26.3]} 14.
Ng3 {[%clk 0:01:59.8]} 14... e6 {[%clk 0:02:21.5]} 15. f4 {[%clk 0:02:00]} 15...
gxf4 {[%clk 0:02:18.4]} 16. Bxf4 {[%clk 0:01:52.5]} 16... Qe7 {[%clk 0:01:55.3]}
17. g5 {[%clk 0:01:49.2]} 17... hxg5 {[%clk 0:01:52.5]} 18. Bxg5 {[%clk
0:01:47.8]} 18... Bf6 {[%clk 0:01:50.5]} 19. h6 {[%clk 0:01:42.5]} 19... Bxg5
{[%clk 0:01:42]} 20. Nxg5 {[%clk 0:01:43.4]} 20... Nf6 {[%clk 0:01:34.2]} 21.
Bd3 {[%clk 0:01:38.1]} 21... Ng4 {[%clk 0:01:28.8]} 22. Qf4 {[%clk 0:01:32.3]}
22... Nf2 {[%clk 0:01:24.5]} 23. Qxf2 {[%clk 0:01:11.9]} 23... Qxg5+ {[%clk
0:01:23.8]} 24. Kb1 {[%clk 0:01:12.4]} 24... Rxh6 {[%clk 0:01:15.7]} 25. Rxh6
{[%clk 0:01:11.4]} 25... Qxh6 {[%clk 0:01:15.4]} 26. Rh1 {[%clk 0:01:12.3]}
26... Qf8 {[%clk 0:01:04.3]} 27. Nh5 {[%clk 0:01:12.1]} 27... f5 {[%clk
0:00:58.3]} 28. Rg1 {[%clk 0:01:07.5]} 28... fxe4 {[%clk 0:00:44.8]} 29. Rg8
{[%clk 0:01:05.7]} 29... Qxg8 {[%clk 0:00:39.2]} 30. Nf6+ {[%clk 0:01:05.7]}
30... Ke7 {[%clk 0:00:38.3]} 31. Nxg8+ {[%clk 0:01:06.6]} 31... Rxg8 {[%clk
0:00:38.2]} 32. Bxe4 {[%clk 0:01:03]} 32... Bxe4 {[%clk 0:00:22.8]} 33. Qh4+
{[%clk 0:01:02.7]} 33... Kf7 {[%clk 0:00:17.8]} 34. Qxe4 {[%clk 0:01:01.8]}
34... Nd5 {[%clk 0:00:17.9]} 35. Qh7+ {[%clk 0:00:52.4]} 35... Rg7 {[%clk
0:00:17.8]} 36. Qh5+ {[%clk 0:00:52.1]} 36... Rg6 {[%clk 0:00:18.1]} 37. c4
{[%clk 0:00:51.9]} 37... Nf6 {[%clk 0:00:14.1]} 38. Qf3 {[%clk 0:00:49.3]} 38...
bxc4 {[%clk 0:00:11.5]} 39. bxc4 {[%clk 0:00:48.4]} 39... Ke7 {[%clk 0:00:11.7]}
40. Qc6 {[%clk 0:00:46]} 40... Kd8 {[%clk 0:00:11.3]} 41. Qa8+ {[%clk
0:00:44.8]} 41... Ke7 {[%clk 0:00:11]} 42. Qxa6 {[%clk 0:00:45.7]} 42... Nd7
{[%clk 0:00:10.5]} 43. Qc6 {[%clk 0:00:43.3]} 43... Kd8 {[%clk 0:00:10.2]} 44.
a4 {[%clk 0:00:43.1]} 44... Rg3 {[%clk 0:00:09]} 45. a5 {[%clk 0:00:42.6]} 45...
Ra3 {[%clk 0:00:08.4]} 46. a6 {[%clk 0:00:42.3]} 46... Nb6 {[%clk 0:00:08.4]}
47. c5 {[%clk 0:00:37.4]} 47... dxc5 {[%clk 0:00:02.1]} 48. dxc5 {[%clk
0:00:37.5]} 48... Rc3 {[%clk 0:00:02.3]} 49. a7 {[%clk 0:00:35.5]} 49... Nc4
{[%clk 0:00:00.7]} 50. a8=Q+ {[%clk 0:00:34.4]} 50... Ke7 {[%clk 0:00:01.6]} 51.
Qae8+ {[%clk 0:00:35.1]} 51... Kf6 {[%clk 0:00:01.8]} 52. Qcxe6+ {[%clk
0:00:35.6]} 1-0